[Event "Late-Titled-Tuesday-Blitz-September-26-2023"]
[Site "Chess.com"]
[Date "2023.09.26"]
[Round "2"]
[White "ukchessbomber"]
[Black "dorpato"]
[Result "1-0"]
[WhiteElo "2663"]
[BlackElo "2023"]
[TimeControl "180+1"]
[EndTime "14:17:47 PDT"]
[Termination "ukchessbomber won by resignation"]

1. b4 {[%clk 0:03:00.9]} 1... g6 {[%clk 0:02:56.8]} 2. Bb2 {[%clk 0:02:59.9]}
2... Nf6 {[%clk 0:02:57.4]} 3. e3 {[%clk 0:02:57.8]} 3... d5 {[%clk 0:02:56.5]}
4. c4 {[%clk 0:02:55.8]} 4... Bg7 {[%clk 0:02:47.5]} 5. cxd5 {[%clk 0:02:54.5]}
5... O-O {[%clk 0:02:45.3]} 6. Nf3 {[%clk 0:02:53.5]} 6... Nxd5 {[%clk
0:02:42.1]} 7. Bxg7 {[%clk 0:02:54.4]} 7... Kxg7 {[%clk 0:02:42.4]} 8. Qb3
{[%clk 0:02:55.1]} 8... Nc6 {[%clk 0:02:37.6]} 9. a3 {[%clk 0:02:53.5]} 9... Be6
{[%clk 0:02:34.6]} 10. Qb2+ {[%clk 0:02:51.1]} 10... Nf6 {[%clk 0:02:22.1]} 11.
Be2 {[%clk 0:02:45.1]} 11... Qd6 {[%clk 0:02:18.2]} 12. O-O {[%clk 0:02:43.3]}
12... Bd5 {[%clk 0:02:15.9]} 13. Nc3 {[%clk 0:02:41.2]} 13... Bxf3 {[%clk
0:02:04]} 14. Bxf3 {[%clk 0:02:42.1]} 14... Rad8 {[%clk 0:02:03.9]} 15. d4
{[%clk 0:02:41.7]} 15... Kg8 {[%clk 0:01:58.6]} 16. Nb5 {[%clk 0:02:36.6]} 16...
Qd7 {[%clk 0:01:51.6]} 17. Rac1 {[%clk 0:02:36.2]} 17... a6 {[%clk 0:01:49.6]}
18. Bxc6 {[%clk 0:02:35]} 18... bxc6 {[%clk 0:01:48.1]} 19. Na7 {[%clk
0:02:30.6]} 19... Ng4 {[%clk 0:01:18.8]} 20. Nxc6 {[%clk 0:02:25.2]} 20... Qd6
{[%clk 0:01:17.9]} 21. Ne5 {[%clk 0:01:51.3]} 21... Nxe5 {[%clk 0:00:58.7]} 22.
dxe5 {[%clk 0:01:51]} 22... Qb6 {[%clk 0:00:54.2]} 23. Rc5 {[%clk 0:01:37.1]}
23... Rd7 {[%clk 0:00:42.7]} 24. h4 {[%clk 0:01:36.3]} 24... Rfd8 {[%clk
0:00:37.6]} 25. Qc2 {[%clk 0:01:09.5]} 25... Rd2 {[%clk 0:00:24.4]} 26. Qc4
{[%clk 0:01:09.2]} 26... R2d7 {[%clk 0:00:20]} 27. h5 {[%clk 0:01:08.7]} 27...
gxh5 {[%clk 0:00:18]} 28. Qe4 {[%clk 0:00:13.7]} 28... Qg6 {[%clk 0:00:16.8]}
29. Qf3 {[%clk 0:00:11.5]} 29... e6 {[%clk 0:00:15]} 30. Rfc1 {[%clk 0:00:10.9]}
30... Rd5 {[%clk 0:00:14.5]} 31. Rxd5 {[%clk 0:00:09.1]} 31... Rxd5 {[%clk
0:00:14.1]} 32. Rxc7 {[%clk 0:00:07.7]} 32... Rxe5 {[%clk 0:00:14.2]} 33. Rc8+
{[%clk 0:00:08.3]} 33... Kg7 {[%clk 0:00:14.2]} 34. Qa8 {[%clk 0:00:08.9]} 34...
Kh6 {[%clk 0:00:13.4]} 35. Rg8 {[%clk 0:00:07.6]} 35... Qf6 {[%clk 0:00:12.5]}
36. Qf8+ {[%clk 0:00:07.1]} 1-0

[Event "Late-Titled-Tuesday-Blitz-September-26-2023"]
[Site "Chess.com"]
[Date "2023.09.26"]
[Round "2"]
[White "DeArron_Fox"]
[Black "MajorCoast"]
[Result "1-0"]
[WhiteElo "2479"]
[BlackElo "2275"]
[TimeControl "180+1"]
[EndTime "14:17:48 PDT"]
[Termination "DeArron_Fox won on time"]

1. d4 {[%clk 0:03:00.9]} 1... d5 {[%clk 0:02:59.4]} 2. c4 {[%clk 0:03:01]} 2...
e6 {[%clk 0:03:00]} 3. Nc3 {[%clk 0:03:01.5]} 3... h6 {[%clk 0:03:00.2]} 4. Nf3
{[%clk 0:02:59]} 4... Nf6 {[%clk 0:03:00.2]} 5. Bf4 {[%clk 0:02:49.1]} 5... Bd6
{[%clk 0:02:59.4]} 6. Bxd6 {[%clk 0:02:46.7]} 6... Qxd6 {[%clk 0:03:00.3]} 7. e3
{[%clk 0:02:47.3]} 7... O-O {[%clk 0:02:59.3]} 8. Bd3 {[%clk 0:02:46.9]} 8...
dxc4 {[%clk 0:02:58.1]} 9. Bxc4 {[%clk 0:02:47.8]} 9... a6 {[%clk 0:02:55]} 10.
O-O {[%clk 0:02:41.4]} 10... b5 {[%clk 0:02:55.1]} 11. Bd3 {[%clk 0:02:41.4]}
11... Bb7 {[%clk 0:02:55.8]} 12. e4 {[%clk 0:02:37.2]} 12... Qe7 {[%clk
0:02:50.7]} 13. e5 {[%clk 0:01:23.4]} 13... Nd5 {[%clk 0:02:38.2]} 14. Ne4
{[%clk 0:01:23.7]} 14... Nf4 {[%clk 0:02:37.4]} 15. Bb1 {[%clk 0:01:22.3]} 15...
Nd7 {[%clk 0:02:16]} 16. Qc2 {[%clk 0:01:21.6]} 16... Bxe4 {[%clk 0:01:46.5]}
17. Qxe4 {[%clk 0:01:21]} 17... Ng6 {[%clk 0:01:46.7]} 18. h4 {[%clk 0:01:17]}
18... Rfc8 {[%clk 0:01:39.9]} 19. h5 {[%clk 0:01:12.3]} 19... Ngf8 {[%clk
0:01:39.5]} 20. a4 {[%clk 0:00:55.5]} 20... b4 {[%clk 0:01:30.6]} 21. Ba2 {[%clk
0:00:20.7]} 21... Nb6 {[%clk 0:01:11.6]} 22. a5 {[%clk 0:00:19.1]} 22... Nbd7
{[%clk 0:01:00.6]} 23. Rac1 {[%clk 0:00:19.1]} 23... c5 {[%clk 0:00:55.4]} 24.
d5 {[%clk 0:00:18.1]} 24... exd5 {[%clk 0:00:48]} 25. Bxd5 {[%clk 0:00:19]}
25... Rab8 {[%clk 0:00:47.5]} 26. Rfe1 {[%clk 0:00:14.4]} 26... Rb5 {[%clk
0:00:41.7]} 27. Nh4 {[%clk 0:00:10.8]} 27... Ne6 {[%clk 0:00:13.6]} 28. Nf5
{[%clk 0:00:06.3]} 28... Qf8 {[%clk 0:00:13.8]} 29. Nd6 {[%clk 0:00:04.9]} 29...
Rxa5 {[%clk 0:00:10.2]} 30. Nxc8 {[%clk 0:00:04.9]} 30... Qxc8 {[%clk
0:00:11.1]} 31. f4 {[%clk 0:00:05]} 31... Qe8 {[%clk 0:00:03]} 32. f5 {[%clk
0:00:03.4]} 32... Ng5 {[%clk 0:00:03.1]} 33. Qf4 {[%clk 0:00:03.8]} 1-0

[Event "Late-Titled-Tuesday-Blitz-September-26-2023"]
[Site "Chess.com"]
[Date "2023.09.26"]
[Round "2"]
[White "MikeSailer"]
[Black "Roenko_Artur"]
[Result "0-1"]
[WhiteElo "2214"]
[BlackElo "2465"]
[TimeControl "180+1"]
[EndTime "14:17:49 PDT"]
[Termination "Roenko_Artur won on time"]

1. d4 {[%clk 0:03:00]} 1... d5 {[%clk 0:02:59.7]} 2. Nc3 {[%clk 0:03:00.3]} 2...
Nf6 {[%clk 0:02:57.8]} 3. Bf4 {[%clk 0:03:00.5]} 3... c5 {[%clk 0:02:55.5]} 4.
e4 {[%clk 0:02:59.6]} 4... cxd4 {[%clk 0:02:51.3]} 5. Qxd4 {[%clk 0:02:58.2]}
5... Nc6 {[%clk 0:02:40.4]} 6. Bb5 {[%clk 0:02:56.1]} 6... a6 {[%clk 0:02:23.7]}
7. Bxc6+ {[%clk 0:02:55.2]} 7... bxc6 {[%clk 0:02:24.6]} 8. O-O-O {[%clk
0:02:42]} 8... e6 {[%clk 0:02:19.4]} 9. exd5 {[%clk 0:02:31.3]} 9... cxd5 {[%clk
0:02:10.7]} 10. Nf3 {[%clk 0:02:20.3]} 10... Qa5 {[%clk 0:02:00.6]} 11. Be5
{[%clk 0:01:39.7]} 11... Be7 {[%clk 0:01:54.2]} 12. h4 {[%clk 0:01:28.5]} 12...
Bd7 {[%clk 0:01:25.6]} 13. h5 {[%clk 0:01:26.6]} 13... h6 {[%clk 0:01:25.2]} 14.
g4 {[%clk 0:01:26.2]} 14... Rc8 {[%clk 0:01:23.6]} 15. g5 {[%clk 0:00:59.6]}
15... hxg5 {[%clk 0:01:16.7]} 16. h6 {[%clk 0:00:59.3]} 16... Rc4 {[%clk
0:00:51.6]} 17. Qd2 {[%clk 0:00:35.9]} 17... gxh6 {[%clk 0:00:44.5]} 18. Nxg5
{[%clk 0:00:35.6]} 18... Rg8 {[%clk 0:00:31.6]} 19. Rxh6 {[%clk 0:00:32.9]}
19... Ng4 {[%clk 0:00:29]} 20. Nxf7 {[%clk 0:00:21.4]} 20... Kxf7 {[%clk
0:00:23.7]} 21. Rh7+ {[%clk 0:00:20.6]} 21... Ke8 {[%clk 0:00:23.6]} 22. Bg3
{[%clk 0:00:08.6]} 22... Bg5 {[%clk 0:00:17.9]} 23. f4 {[%clk 0:00:07.7]} 23...
Bf6 {[%clk 0:00:18]} 24. Rxd7 {[%clk 0:00:04.4]} 24... Kxd7 {[%clk 0:00:16.4]}
25. Rh1 {[%clk 0:00:04.4]} 25... Bxc3 {[%clk 0:00:12]} 26. bxc3 {[%clk
0:00:05.1]} 26... Qa3+ {[%clk 0:00:11.2]} 27. Kd1 {[%clk 0:00:04.4]} 27... Qxc3
{[%clk 0:00:10.3]} 28. Rh7+ {[%clk 0:00:04.2]} 28... Kc6 {[%clk 0:00:10.4]} 29.
Qxc3 {[%clk 0:00:04]} 29... Rxc3 {[%clk 0:00:10.1]} 30. f5 {[%clk 0:00:04.5]}
30... Ne3+ {[%clk 0:00:09.8]} 31. Ke2 {[%clk 0:00:04.6]} 31... Rxg3 {[%clk
0:00:09.8]} 0-1

[Event "Late-Titled-Tuesday-Blitz-September-26-2023"]
[Site "Chess.com"]
[Date "2023.09.26"]
[Round "2"]
[White "stolencandy13"]
[Black "WiseKing_08"]
[Result "1-0"]
[WhiteElo "2556"]
[BlackElo "2350"]
[TimeControl "180+1"]
[EndTime "14:17:50 PDT"]
[Termination "stolencandy13 won on time"]

1. d4 {[%clk 0:03:00.9]} 1... d5 {[%clk 0:02:59.9]} 2. Bf4 {[%clk 0:02:59.8]}
2... c5 {[%clk 0:02:59.7]} 3. e3 {[%clk 0:03:00.2]} 3... cxd4 {[%clk 0:02:59.6]}
4. exd4 {[%clk 0:03:01.1]} 4... Nc6 {[%clk 0:02:59.6]} 5. c3 {[%clk 0:03:01.7]}
5... Bf5 {[%clk 0:02:59.6]} 6. Nd2 {[%clk 0:03:01.9]} 6... e6 {[%clk 0:02:58.3]}
7. Qb3 {[%clk 0:03:02.1]} 7... Qd7 {[%clk 0:02:58]} 8. Ngf3 {[%clk 0:03:02]}
8... f6 {[%clk 0:02:58.2]} 9. Be2 {[%clk 0:02:55.5]} 9... g5 {[%clk 0:02:56.6]}
10. Bg3 {[%clk 0:02:50.9]} 10... h5 {[%clk 0:02:56.4]} 11. h4 {[%clk 0:02:50.5]}
11... g4 {[%clk 0:02:55.9]} 12. Nh2 {[%clk 0:02:50.8]} 12... Nh6 {[%clk
0:02:51.6]} 13. Nhf1 {[%clk 0:02:50.3]} 13... Nf7 {[%clk 0:02:47.6]} 14. Ne3
{[%clk 0:02:49.7]} 14... Bg6 {[%clk 0:02:48]} 15. O-O-O {[%clk 0:02:45]} 15...
Bd6 {[%clk 0:02:47.8]} 16. Bxd6 {[%clk 0:02:43.9]} 16... Nxd6 {[%clk 0:02:48.7]}
17. f3 {[%clk 0:02:41.1]} 17... f5 {[%clk 0:02:27.6]} 18. fxg4 {[%clk
0:02:38.9]} 18... fxg4 {[%clk 0:02:28.5]} 19. Rde1 {[%clk 0:02:10.7]} 19...
O-O-O {[%clk 0:02:26.1]} 20. Rhf1 {[%clk 0:02:05]} 20... Rhf8 {[%clk 0:02:20.8]}
21. g3 {[%clk 0:02:01.4]} 21... Kb8 {[%clk 0:02:14.5]} 22. Ng2 {[%clk
0:01:58.6]} 22... Nxd4 {[%clk 0:02:07.7]} 23. cxd4 {[%clk 0:01:36.6]} 23... Rc8+
{[%clk 0:02:05.8]} 24. Kd1 {[%clk 0:01:37]} 24... Qc6 {[%clk 0:01:54.1]} 25. Bd3
{[%clk 0:01:20.5]} 25... Be4 {[%clk 0:01:13.3]} 26. Rxf8 {[%clk 0:01:15.2]}
26... Rxf8 {[%clk 0:01:09.6]} 27. Nf4 {[%clk 0:01:10.7]} 27... Nf5 {[%clk
0:00:46.2]} 28. Nxe4 {[%clk 0:01:01.4]} 28... dxe4 {[%clk 0:00:35.1]} 29. Bxe4
{[%clk 0:00:54.5]} 29... Qd7 {[%clk 0:00:35.7]} 30. Qb4 {[%clk 0:00:49.5]} 30...
Rd8 {[%clk 0:00:22.1]} 31. Bxf5 {[%clk 0:00:49]} 31... exf5 {[%clk 0:00:22.4]}
32. Re7 {[%clk 0:00:44.8]} 32... Qc6 {[%clk 0:00:12.9]} 33. d5 {[%clk 0:00:39]}
33... Qa6 {[%clk 0:00:12.9]} 34. Ke1 {[%clk 0:00:27.8]} 34... Rc8 {[%clk
0:00:09.8]} 35. Ne2 {[%clk 0:00:20.4]} 35... b6 {[%clk 0:00:03.9]} 36. Qd6+
{[%clk 0:00:18.8]} 36... Ka8 {[%clk 0:00:03.5]} 37. Qd7 {[%clk 0:00:18.1]} 37...
Rb8 {[%clk 0:00:01.2]} 38. Re8 {[%clk 0:00:18.4]} 1-0

[Event "Late-Titled-Tuesday-Blitz-September-26-2023"]
[Site "Chess.com"]
[Date "2023.09.26"]
[Round "2"]
[White "NovikovaGalina"]
[Black "JoakimVonAnd"]
[Result "0-1"]
[WhiteElo "2432"]
[BlackElo "2717"]
[TimeControl "180+1"]
[EndTime "14:17:52 PDT"]
[Termination "JoakimVonAnd won by checkmate"]

1. e4 {[%clk 0:03:00.9]} 1... g6 {[%clk 0:03:00]} 2. d4 {[%clk 0:03:00.3]} 2...
Bg7 {[%clk 0:03:00.2]} 3. Nc3 {[%clk 0:03:00.9]} 3... a6 {[%clk 0:02:59.6]} 4.
f3 {[%clk 0:03:00.8]} 4... d5 {[%clk 0:02:54.9]} 5. exd5 {[%clk 0:02:41.2]} 5...
Nf6 {[%clk 0:02:53]} 6. Be3 {[%clk 0:02:30.4]} 6... Nxd5 {[%clk 0:02:49.2]} 7.
Nxd5 {[%clk 0:02:31.3]} 7... Qxd5 {[%clk 0:02:49.7]} 8. Qd2 {[%clk 0:02:29.6]}
8... b5 {[%clk 0:02:42]} 9. Ne2 {[%clk 0:02:28]} 9... O-O {[%clk 0:02:26.5]} 10.
Nc3 {[%clk 0:02:24.5]} 10... Qd8 {[%clk 0:02:21.9]} 11. O-O-O {[%clk 0:02:24.8]}
11... e5 {[%clk 0:02:16]} 12. d5 {[%clk 0:02:19.9]} 12... Nd7 {[%clk 0:02:10.8]}
13. h4 {[%clk 0:02:16.2]} 13... f5 {[%clk 0:01:57]} 14. Bh6 {[%clk 0:02:14.2]}
14... Nf6 {[%clk 0:01:52.3]} 15. Bxg7 {[%clk 0:02:02.8]} 15... Kxg7 {[%clk
0:01:53.2]} 16. h5 {[%clk 0:01:28.2]} 16... Nxh5 {[%clk 0:01:51.5]} 17. Be2
{[%clk 0:01:19.1]} 17... h6 {[%clk 0:01:31.3]} 18. Kb1 {[%clk 0:01:10.1]} 18...
Qg5 {[%clk 0:01:27.9]} 19. Qe1 {[%clk 0:01:09.1]} 19... Bb7 {[%clk 0:01:17.4]}
20. g4 {[%clk 0:01:00.1]} 20... fxg4 {[%clk 0:01:14.9]} 21. fxg4 {[%clk
0:01:01]} 21... Nf4 {[%clk 0:01:09]} 22. Ne4 {[%clk 0:00:54.5]} 22... Qe7 {[%clk
0:01:09.2]} 23. g5 {[%clk 0:00:52]} 23... Bxd5 {[%clk 0:00:47.7]} 24. gxh6+
{[%clk 0:00:42]} 24... Kh7 {[%clk 0:00:48.1]} 25. Bf3 {[%clk 0:00:15.1]} 25...
Rad8 {[%clk 0:00:48]} 26. Qg3 {[%clk 0:00:12.5]} 26... Bxe4 {[%clk 0:00:46.6]}
27. Bxe4 {[%clk 0:00:13.4]} 27... Rxd1+ {[%clk 0:00:46.4]} 28. Rxd1 {[%clk
0:00:13]} 28... Rd8 {[%clk 0:00:47.1]} 29. Rg1 {[%clk 0:00:12.2]} 29... Rd6
{[%clk 0:00:40.6]} 30. Qg4 {[%clk 0:00:12.8]} 30... Qd7 {[%clk 0:00:38.3]} 31.
Qf3 {[%clk 0:00:11.5]} 31... a5 {[%clk 0:00:35.9]} 32. a3 {[%clk 0:00:11.9]}
32... a4 {[%clk 0:00:35.2]} 33. Qc3 {[%clk 0:00:05.1]} 33... Rd4 {[%clk
0:00:28.9]} 34. Re1 {[%clk 0:00:03.8]} 34... Qd6 {[%clk 0:00:26]} 35. Qa5 {[%clk
0:00:02.4]} 35... Rd1+ {[%clk 0:00:19.9]} 36. Rxd1 {[%clk 0:00:03]} 36... Qxd1+
{[%clk 0:00:20.8]} 37. Ka2 {[%clk 0:00:03.7]} 37... Ne2 {[%clk 0:00:17.5]} 38.
Qxc7+ {[%clk 0:00:01.8]} 38... Kxh6 {[%clk 0:00:18]} 39. Qc5 {[%clk 0:00:01.4]}
39... Nc1+ {[%clk 0:00:17.8]} 40. Kb1 {[%clk 0:00:01.8]} 40... Nb3+ {[%clk
0:00:17.8]} 41. Ka2 {[%clk 0:00:02.4]} 41... Qa1# {[%clk 0:00:18]} 0-1

[Event "Late-Titled-Tuesday-Blitz-September-26-2023"]
[Site "Chess.com"]
[Date "2023.09.26"]
[Round "2"]
[White "emeli_chess"]
[Black "TatjanaVasilevich"]
[Result "1/2-1/2"]
[WhiteElo "2361"]
[BlackElo "2548"]
[TimeControl "180+1"]
[EndTime "14:17:54 PDT"]
[Termination "Game drawn by repetition"]

1. d4 {[%clk 0:03:00.9]} 1... Nf6 {[%clk 0:02:59.8]} 2. c4 {[%clk 0:03:00.9]}
2... e6 {[%clk 0:02:59.3]} 3. Nc3 {[%clk 0:03:01.1]} 3... Bb4 {[%clk 0:02:59.5]}
4. Qc2 {[%clk 0:03:01.3]} 4... O-O {[%clk 0:02:59.3]} 5. e4 {[%clk 0:03:01.5]}
5... Bxc3+ {[%clk 0:02:59.1]} 6. bxc3 {[%clk 0:03:00.7]} 6... d6 {[%clk
0:02:59.7]} 7. e5 {[%clk 0:03:00.5]} 7... dxe5 {[%clk 0:02:59.9]} 8. dxe5 {[%clk
0:03:00.9]} 8... Nfd7 {[%clk 0:02:58.8]} 9. Nf3 {[%clk 0:03:00.4]} 9... Nc6
{[%clk 0:02:58.8]} 10. Bf4 {[%clk 0:02:59.9]} 10... f6 {[%clk 0:02:58.5]} 11.
exf6 {[%clk 0:02:57]} 11... Qxf6 {[%clk 0:02:59.4]} 12. Be3 {[%clk 0:02:49.7]}
12... Nde5 {[%clk 0:02:48.1]} 13. Nxe5 {[%clk 0:02:45.2]} 13... Nxe5 {[%clk
0:02:49]} 14. Be2 {[%clk 0:02:44.4]} 14... Bd7 {[%clk 0:02:48.6]} 15. O-O {[%clk
0:02:43]} 15... Bc6 {[%clk 0:02:49.1]} 16. f4 {[%clk 0:02:28.6]} 16... Ng6
{[%clk 0:02:48.7]} 17. Bd4 {[%clk 0:02:19.8]} 17... e5 {[%clk 0:02:32.1]} 18.
Bxe5 {[%clk 0:01:38.4]} 18... Nxe5 {[%clk 0:02:30.4]} 19. fxe5 {[%clk
0:01:38.5]} 19... Qxe5 {[%clk 0:02:29.7]} 20. Rxf8+ {[%clk 0:01:20.8]} 20...
Rxf8 {[%clk 0:02:29]} 21. Qd3 {[%clk 0:01:17.5]} 21... Qg5 {[%clk 0:02:23.7]}
22. Bf1 {[%clk 0:01:11.4]} 22... Rd8 {[%clk 0:02:15.9]} 23. Qg3 {[%clk
0:01:05.9]} 23... Qxg3 {[%clk 0:02:14.3]} 24. hxg3 {[%clk 0:01:06]} 24... Rd2
{[%clk 0:02:14.9]} 25. a4 {[%clk 0:01:03]} 25... a5 {[%clk 0:02:14.6]} 26. c5
{[%clk 0:00:53.4]} 26... Kf7 {[%clk 0:02:13.1]} 27. g4 {[%clk 0:00:31.6]} 27...
Kf6 {[%clk 0:02:12.2]} 28. Kh2 {[%clk 0:00:29.3]} 28... Kg5 {[%clk 0:02:12]} 29.
Kg3 {[%clk 0:00:29.4]} 29... Rc2 {[%clk 0:02:11]} 30. c4 {[%clk 0:00:28]} 30...
Rc3+ {[%clk 0:02:11]} 31. Kh2 {[%clk 0:00:27.8]} 31... Kxg4 {[%clk 0:02:11.2]}
32. Be2+ {[%clk 0:00:24.1]} 32... Kg5 {[%clk 0:02:09.6]} 33. Rf1 {[%clk
0:00:23.5]} 33... Rc2 {[%clk 0:02:09.6]} 34. Bf3 {[%clk 0:00:23.6]} 34... Bxf3
{[%clk 0:02:01.1]} 35. Rxf3 {[%clk 0:00:23.5]} 35... Kg6 {[%clk 0:02:01.7]} 36.
Rb3 {[%clk 0:00:22]} 36... Rxc4 {[%clk 0:02:01.2]} 37. Rxb7 {[%clk 0:00:22.1]}
37... Rxc5 {[%clk 0:02:01.9]} 38. Kh3 {[%clk 0:00:21]} 38... Kf5 {[%clk
0:02:01.5]} 39. Rb8 {[%clk 0:00:19.4]} 39... h5 {[%clk 0:02:00.8]} 40. g3 {[%clk
0:00:18.2]} 40... g6 {[%clk 0:01:59.4]} 41. Rf8+ {[%clk 0:00:18]} 41... Kg5
{[%clk 0:01:59.8]} 42. Rf7 {[%clk 0:00:17.9]} 42... Rc4 {[%clk 0:01:59.7]} 43.
Rd7 {[%clk 0:00:18]} 43... Rxa4 {[%clk 0:01:59.1]} 44. Rxc7 {[%clk 0:00:18.1]}
44... Ra1 {[%clk 0:01:59]} 45. Rc5+ {[%clk 0:00:17.8]} 45... Kh6 {[%clk
0:01:59.5]} 46. Rc6 {[%clk 0:00:17.4]} 46... a4 {[%clk 0:01:59.9]} 47. Ra6
{[%clk 0:00:17.6]} 47... a3 {[%clk 0:02:00.3]} 48. g4 {[%clk 0:00:14.2]} 48...
hxg4+ {[%clk 0:01:59.5]} 49. Kg2 {[%clk 0:00:14.6]} 49... a2 {[%clk 0:01:59.6]}
50. Ra5 {[%clk 0:00:14.7]} 50... g3 {[%clk 0:01:59]} 51. Ra4 {[%clk 0:00:13.9]}
51... Kh5 {[%clk 0:01:58.5]} 52. Ra3 {[%clk 0:00:13.3]} 52... g5 {[%clk
0:01:55.6]} 53. Ra4 {[%clk 0:00:13.3]} 53... Kg6 {[%clk 0:01:55.2]} 54. Ra5
{[%clk 0:00:13.4]} 54... Kh5 {[%clk 0:01:54.1]} 55. Ra4 {[%clk 0:00:13.6]} 55...
g4 {[%clk 0:01:51.1]} 56. Ra5+ {[%clk 0:00:13.2]} 56... Kh4 {[%clk 0:01:51.5]}
57. Ra4 {[%clk 0:00:12.4]} 57... Kg5 {[%clk 0:01:49.8]} 58. Ra5+ {[%clk
0:00:12.8]} 58... Kf4 {[%clk 0:01:50.4]} 59. Ra4+ {[%clk 0:00:13]} 59... Ke3
{[%clk 0:01:51]} 60. Ra3+ {[%clk 0:00:13.2]} 60... Kd2 {[%clk 0:01:51.2]} 61.
Ra8 {[%clk 0:00:10.8]} 61... Kd1 {[%clk 0:01:49.9]} 62. Rd8+ {[%clk 0:00:10.6]}
62... Ke2 {[%clk 0:01:50.1]} 63. Re8+ {[%clk 0:00:10.8]} 63... Kd3 {[%clk
0:01:50.3]} 64. Ra8 {[%clk 0:00:09.3]} 64... Kc4 {[%clk 0:01:50.2]} 65. Rc8+
{[%clk 0:00:08.9]} 65... Kb4 {[%clk 0:01:49.6]} 66. Rb8+ {[%clk 0:00:09.2]}
66... Kc5 {[%clk 0:01:49.4]} 67. Rc8+ {[%clk 0:00:09.4]} 67... Kb6 {[%clk
0:01:49.9]} 68. Ra8 {[%clk 0:00:09.5]} 68... Kb7 {[%clk 0:01:50.3]} 69. Ra3
{[%clk 0:00:09.5]} 69... Kb8 {[%clk 0:01:50.9]} 70. Ra4 {[%clk 0:00:09.4]} 70...
Kc7 {[%clk 0:01:50.8]} 71. Ra3 {[%clk 0:00:09.4]} 71... Kc6 {[%clk 0:01:51.4]}
72. Ra4 {[%clk 0:00:09.5]} 72... Kd5 {[%clk 0:01:52]} 73. Ra8 {[%clk 0:00:09.3]}
73... Ke4 {[%clk 0:01:52.9]} 74. Re8+ {[%clk 0:00:09.1]} 74... Kf5 {[%clk
0:01:53.4]} 75. Rf8+ {[%clk 0:00:09.1]} 75... Kg6 {[%clk 0:01:54.2]} 76. Ra8
{[%clk 0:00:09.2]} 76... Kg5 {[%clk 0:01:52.6]} 77. Ra5+ {[%clk 0:00:08.7]}
77... Kf4 {[%clk 0:01:52.3]} 78. Ra4+ {[%clk 0:00:08.9]} 78... Ke3 {[%clk
0:01:53]} 79. Ra3+ {[%clk 0:00:08.7]} 79... Ke2 {[%clk 0:01:53.5]} 80. Ra8
{[%clk 0:00:08.5]} 80... Ke3 {[%clk 0:01:53.6]} 81. Ra3+ {[%clk 0:00:07.6]}
1/2-1/2

[Event "Late-Titled-Tuesday-Blitz-September-26-2023"]
[Site "Chess.com"]
[Date "2023.09.26"]
[Round "2"]
[White "MaxLeto"]
[Black "KaydenTroffChess"]
[Result "0-1"]
[WhiteElo "2515"]
[BlackElo "2790"]
[TimeControl "180+1"]
[EndTime "14:17:56 PDT"]
[Termination "KaydenTroffChess won by checkmate"]

1. g4 {[%clk 0:02:53.6]} 1... d5 {[%clk 0:02:55.8]} 2. Bg2 {[%clk 0:02:53.8]}
2... c6 {[%clk 0:02:56.1]} 3. h3 {[%clk 0:02:51.7]} 3... g6 {[%clk 0:02:50.7]}
4. d4 {[%clk 0:02:51.8]} 4... Bg7 {[%clk 0:02:50.9]} 5. Nf3 {[%clk 0:02:52.2]}
5... Nf6 {[%clk 0:02:50.7]} 6. c3 {[%clk 0:02:52.1]} 6... O-O {[%clk 0:02:49.8]}
7. Bf4 {[%clk 0:02:52.4]} 7... Nbd7 {[%clk 0:02:49.1]} 8. Nbd2 {[%clk
0:02:52.5]} 8... Re8 {[%clk 0:02:48.4]} 9. Ne5 {[%clk 0:02:52.9]} 9... Nxe5
{[%clk 0:02:45.6]} 10. Bxe5 {[%clk 0:02:53.8]} 10... Qb6 {[%clk 0:02:41.2]} 11.
b4 {[%clk 0:02:15.8]} 11... a5 {[%clk 0:02:39.1]} 12. a3 {[%clk 0:02:15.8]}
12... axb4 {[%clk 0:02:34.1]} 13. axb4 {[%clk 0:02:16.7]} 13... Be6 {[%clk
0:02:28]} 14. O-O {[%clk 0:02:14.3]} 14... h5 {[%clk 0:02:11.1]} 15. Bxf6 {[%clk
0:02:02.7]} 15... Rxa1 {[%clk 0:02:07.4]} 16. Qxa1 {[%clk 0:01:59.1]} 16... Bxf6
{[%clk 0:02:07.7]} 17. gxh5 {[%clk 0:01:59]} 17... gxh5 {[%clk 0:02:08.6]} 18.
e4 {[%clk 0:01:58.2]} 18... Qb5 {[%clk 0:01:37]} 19. e5 {[%clk 0:01:08.4]} 19...
Bg7 {[%clk 0:01:34.4]} 20. f4 {[%clk 0:01:08.8]} 20... Bf5 {[%clk 0:01:32.7]}
21. Qd1 {[%clk 0:01:08.9]} 21... Qd3 {[%clk 0:01:32.2]} 22. Rf3 {[%clk
0:01:06.6]} 22... Qc2 {[%clk 0:01:31.9]} 23. Qxc2 {[%clk 0:00:50.5]} 23... Bxc2
{[%clk 0:01:32.8]} 24. f5 {[%clk 0:00:51.2]} 24... Ra8 {[%clk 0:01:29.1]} 25.
Kf2 {[%clk 0:00:50.2]} 25... Ra2 {[%clk 0:01:25.4]} 26. Ke1 {[%clk 0:00:39.6]}
26... Bh6 {[%clk 0:01:24.9]} 27. Rf2 {[%clk 0:00:38.5]} 27... Bd3 {[%clk
0:01:06.5]} 28. Nb3 {[%clk 0:00:27.3]} 28... Ra3 {[%clk 0:00:59.4]} 29. Rb2
{[%clk 0:00:23.7]} 29... Bxf5 {[%clk 0:00:44.6]} 30. Ke2 {[%clk 0:00:22.5]}
30... h4 {[%clk 0:00:40.1]} 31. b5 {[%clk 0:00:22.3]} 31... cxb5 {[%clk
0:00:38.2]} 32. Bxd5 {[%clk 0:00:21.7]} 32... b6 {[%clk 0:00:37.6]} 33. Kf3
{[%clk 0:00:15.7]} 33... Bxh3 {[%clk 0:00:36]} 34. Rh2 {[%clk 0:00:15.3]} 34...
Bf5 {[%clk 0:00:26.9]} 35. Rxh4 {[%clk 0:00:10.7]} 35... Kg7 {[%clk 0:00:15.7]}
36. Rh2 {[%clk 0:00:09.9]} 36... e6 {[%clk 0:00:14.9]} 37. Rg2+ {[%clk
0:00:07.7]} 37... Kf8 {[%clk 0:00:15.2]} 38. Be4 {[%clk 0:00:02.2]} 38... Bxe4+
{[%clk 0:00:14.8]} 39. Kxe4 {[%clk 0:00:03.1]} 39... Rxb3 {[%clk 0:00:15.2]} 40.
Rh2 {[%clk 0:00:02.9]} 40... Kg7 {[%clk 0:00:14]} 41. Rc2 {[%clk 0:00:03]} 41...
b4 {[%clk 0:00:14]} 42. c4 {[%clk 0:00:02.8]} 42... Re3# {[%clk 0:00:14.1]} 0-1